fUSD/lending_fUSD_20240715
["ID","MTS","AMOUNT","RATE_DAILY","PERIOD"]
[332171921,1721003433194,-251.5373081,0.00013698,2]
[332171922,1721003433203,-500.0,0.00013698,2]
[332171923,1721003433212,-500.0,0.00013698,2]
[332171924,1721003433222,-616.24,0.00013698,2]
[332171925,1721003433231,-884.68,0.00013698,2]
[332171926,1721003433240,-680.72,0.00013698,2]
[332171927,1721003433249,-500.0,0.00013698,2]
[332171928,1721003433259,-500.0,0.00013698,2]
[332171929,1721003433268,-500.0,0.00013698,2]
[332171930,1721003433548,-429.06,0.00013699,2]
[332171931,1721003433569,-250.0,0.00013699,2]
[332171932,1721003433582,-234.16996596,0.000137,2]
[332171933,1721003433591,-300.0,0.000137,5]
[332171934,1721003433601,-164.151634,0.00013722,2]
[332171935,1721003433610,-253.760719,0.00013722,2]
[332171936,1721003433619,-1555.23375712,0.00013736,2]
[332171937,1721003433628,-500.0,0.00013753,2]
[332171938,1721003433637,-500.0,0.00013753,2]
[332171939,1721003433647,-500.0,0.00013753,2]
[332171940,1721003433656,-500.0,0.00013753,2]
[332171941,1721003433665,-150.0,0.00013753,2]
[332171942,1721003433674,-497.51059573,0.00013753,2]
[332171943,1721003433683,-500.0,0.00013753,2]
[332171944,1721003433692,-500.0,0.00013753,2]
[332171945,1721003433701,-500.0,0.00013753,2]
[332171946,1721003433710,-500.0,0.00013753,2]
[332171947,1721003433720,-402.1362709,0.00013753,2]
[332171948,1721003433729,-500.0,0.00013753,2]
[332171949,1721003433738,-500.0,0.00013753,2]
[332171950,1721003433747,-2774.2,0.00013753,2]
[332171951,1721003433757,-500.0,0.00013753,2]
[332171952,1721003433765,-500.0,0.00013753,2]
[332171953,1721003433774,-500.0,0.00013753,2]
[332171954,1721003433784,-500.0,0.00013753,2]
[332171955,1721003433793,-500.0,0.00013753,2]
[332171956,1721003433804,-500.0,0.00013753,2]
[332171957,1721003433813,-500.0,0.00013753,2]
[332171958,1721003433822,-500.0,0.00013753,2]
[332171959,1721003433832,-500.0,0.00013753,2]
[332171960,1721003433841,-603.7,0.00013753,2]
[332171961,1721003433850,-500.0,0.00013753,2]
[332171962,1721003433859,-500.0,0.00013753,2]
[332171963,1721003433869,-500.0,0.00013753,2]
[332171964,1721003433878,-500.0,0.00013753,2]
[332171965,1721003433887,-500.0,0.00013753,2]
[332171966,1721003433896,-500.0,0.00013753,2]
[332171967,1721003433905,-500.0,0.00013753,2]
[332171968,1721003433914,-500.0,0.00013753,2]
[332171969,1721003433923,-500.0,0.00013753,2]
[332171970,1721003433933,-500.0,0.00013753,2]
[332171971,1721003433942,-500.0,0.00013753,2]
[332171972,1721003433951,-500.0,0.00013753,2]
[332171973,1721003433960,-500.0,0.00013753,2]
[332171974,1721003433969,-500.0,0.00013753,2]
[332171975,1721003433979,-500.0,0.00013753,2]
[332171976,1721003433988,-2323.09,0.00013753,2]
[332171977,1721003433997,-500.0,0.00013753,2]
[332171978,1721003434007,-500.0,0.00013753,2]
[332171979,1721003434016,-500.0,0.00013753,2]
[332171980,1721003434025,-616.24,0.00013753,2]
[332171981,1721003434034,-884.68,0.00013753,2]
[332171982,1721003434043,-680.72,0.00013753,2]
[332171983,1721003434055,-500.0,0.00013753,2]
[332171984,1721003434065,-1286.76187843,0.00013759,2]
[332171985,1721003434075,-4287.7009,0.00013763,2]
[332171986,1721003434086,-932.12,0.00013763,2]
[332171987,1721003434096,-4028.1972,0.00013763,2]
[332171988,1721003434105,-9016.1602,0.00013763,2]
[332171989,1721003434114,-500.0,0.00013789,2]
[332171990,1721003434123,-1000.0,0.0001379,2]
[332171991,1721003434132,-164234.5247,0.0001379,2]
[332171992,1721003434142,-300.0,0.000138,5]
[332171993,1721003434151,-500.0,0.00013808,2]
[332171994,1721003434160,-500.0,0.00013808,2]
[332171995,1721003434169,-500.0,0.00013808,2]
[332171996,1721003434179,-500.0,0.00013808,2]
[332171997,1721003434188,-150.0,0.00013808,2]
[332171998,1721003434196,-260.84637875,0.00013808,2]
[332171999,1721003434206,-500.0,0.00013808,2]
[332172000,1721003434215,-218.65877667,0.00013808,2]
[332172001,1721003434224,-500.0,0.00013808,2]
[332172002,1721003434233,-335.13412603,0.00013808,2]
[332172003,1721003434243,-500.0,0.00013808,2]
[332172004,1721003434252,-2774.2,0.00013808,2]
[332172005,1721003434261,-500.0,0.00013808,2]
[332172006,1721003434270,-500.0,0.00013808,2]
[332172007,1721003434280,-500.0,0.00013808,2]
[332172008,1721003434289,-500.0,0.00013808,2]
[332172009,1721003434299,-500.0,0.00013808,2]
[332172010,1721003434308,-500.0,0.00013808,2]
[332172011,1721003434318,-152.25415196,0.00013808,2]
[332172012,1721003434327,-603.7,0.00013808,2]
[332172013,1721003434337,-500.0,0.00013808,2]
[332172014,1721003434346,-500.0,0.00013808,2]
[332172015,1721003434356,-500.0,0.00013808,2]
[332172016,1721003434365,-500.0,0.00013808,2]
[332172017,1721003434374,-500.0,0.00013808,2]
[332172018,1721003434383,-500.0,0.00013808,2]
[332172019,1721003434392,-500.0,0.00013808,2]
[332172020,1721003434402,-500.0,0.00013808,2]
[332172021,1721003434411,-500.0,0.00013808,2]
[332172022,1721003434421,-500.0,0.00013808,2]
[332172023,1721003434433,-500.0,0.00013808,2]
[332172024,1721003434442,-500.0,0.00013808,2]
[332172025,1721003434451,-500.0,0.00013808,2]
[332172026,1721003434461,-500.0,0.00013808,2]
[332172027,1721003434470,-2323.09,0.00013808,2]
[332172028,1721003434479,-500.0,0.00013808,2]
[332172029,1721003434489,-500.0,0.00013808,2]
[332172030,1721003434500,-500.0,0.00013808,2]
[332172031,1721003434509,-616.24,0.00013808,2]
[332172032,1721003434519,-884.68,0.00013808,2]
[332172033,1721003434528,-680.72,0.00013808,2]
[332172034,1721003434537,-500.0,0.00013808,2]
[332172035,1721003434549,-685.74697469,0.00013849,2]
[332172036,1721003434559,-175.29870113,0.00013849,2]
[332172037,1721003434568,-155.0,0.00013849,2]
[332172038,1721003434578,-500.0,0.0001386,2]
[332172039,1721003434587,-500.0,0.00013863,2]
[332172040,1721003434596,-500.0,0.00013863,2]
[332172041,1721003434605,-500.0,0.00013863,2]
[332172042,1721003434615,-500.0,0.00013863,2]
[332172043,1721003434624,-150.0,0.00013863,2]
[332172044,1721003434634,-500.0,0.00013863,2]
[332172045,1721003434643,-234.10073259,0.00013863,2]
[332172046,1721003434889,-570.04,0.00010192,2]
[332172047,1721003434899,-500.0,0.00013753,2]
[332172048,1721003434908,-269.62188919,0.00013863,2]
[332172049,1721003434918,-1258.03251081,0.00013863,2]
[332172050,1721003434930,-1516.16748919,0.00013863,2]
[332172051,1721003434939,-500.0,0.00013863,2]
[332172052,1721003434949,-500.0,0.00013863,2]
[332172053,1721003434959,-254.28140998,0.00013863,2]
[332172054,1721003434969,-373.62364177,0.00013863,2]
[332172055,1721003434980,-126.37635823,0.00013863,2]
[332172056,1721003434990,-233.87014377,0.00013863,2]
[332172069,1721003438180,-301.52429435,0.00012456,2]
[332172070,1721003438294,-268.51570565,0.00012456,2]
[332172071,1721003438307,-334.58997074,0.00013663,2]
[332172072,1721003438316,-500.0,0.00013808,2]
[332172073,1721003438326,-266.12985623,0.00013863,2]
[332172074,1721003438335,-500.0,0.00013863,2]
[332172075,1721003438343,-603.7,0.00013863,2]
[332172077,1721003438352,-500.0,0.00013863,2]
[332172078,1721003438361,-500.0,0.00013863,2]
[332172080,1721003438371,-500.0,0.00013863,2]
[332172082,1721003438380,-500.0,0.00013863,2]
[332172084,1721003438389,-500.0,0.00013863,2]
[332172086,1721003438398,-452.80988804,0.00013863,2]
[332172088,1721003438408,-500.0,0.00013863,2]
[332172091,1721003438417,-500.0,0.00013863,2]
[332172093,1721003438430,-500.0,0.00013863,2]
[332172095,1721003438440,-500.0,0.00013863,2]
[332172097,1721003438449,-500.0,0.00013863,2]
[332172098,1721003438458,-500.0,0.00013863,2]
[332172100,1721003438469,-500.0,0.00013863,2]
[332172102,1721003438478,-500.0,0.00013863,2]
[332172103,1721003438488,-2323.09,0.00013863,2]
[332172104,1721003438497,-500.0,0.00013863,2]
[332172105,1721003438508,-500.0,0.00013863,2]
[332172106,1721003438518,-464.359999,0.00013863,2]
[332172107,1721003438528,-616.24,0.00013863,2]
[332172109,1721003438538,-884.68,0.00013863,2]
[332172110,1721003438547,-680.72,0.00013863,2]
[332172111,1721003438561,-177.02,0.00013863,2]
[332172112,1721003438571,-500.0,0.00013863,2]
[332172113,1721003438580,-164.151634,0.00013888,2]
[332172114,1721003438589,-253.760719,0.00013888,2]
[332172115,1721003438598,-500.0,0.00013897,2]
[332172116,1721003438607,-528.14374148,0.00013898,2]
[332172117,1721003438616,-500.0,0.00013898,2]
[332172118,1721003438625,-238.32535724,0.00013898,2]
[332172119,1721003438635,-500.0,0.00013898,2]
[332172120,1721003438644,-293.02661051,0.00013898,2]
[332172121,1721003438653,-500.0,0.00013898,2]
[332172122,1721003438663,-500.0,0.00013898,2]
[332172123,1721003438672,-500.0,0.00013898,2]
[332172124,1721003438682,-500.0,0.00013899,2]
[332172125,1721003438692,-624.51640094,0.00013899,2]
[332172126,1721003438702,-480.16,0.000139,2]
[332172127,1721003438711,-1000.0,0.000139,2]
[332172128,1721003438721,-2778.0244,0.000139,2]
[332172129,1721003438732,-174.58989141,0.000139,2]
[332172130,1721003438742,-169.99561806,0.000139,2]
[332172131,1721003438751,-171.61014676,0.000139,2]
[332172132,1721003438760,-708.0,0.000139,5]
[332172133,1721003438769,-937.75520323,0.000139,2]
[332172134,1721003438779,-500.0,0.00013917,2]
[332172135,1721003438788,-611.38945766,0.00013917,2]
[332172136,1721003438797,-302.42290287,0.00013917,2]
[332172137,1721003438813,-500.0,0.00013917,2]
[332172138,1721003438823,-150.0,0.00013917,2]
[332172139,1721003438832,-500.0,0.00013917,2]
[332172140,1721003438842,-2774.2,0.00013917,2]
[332172141,1721003438851,-500.0,0.00013917,2]
[332172142,1721003438860,-500.0,0.00013917,2]
[332172143,1721003438870,-500.0,0.00013917,2]
[332172144,1721003438879,-195.05551791,0.00013917,2]
[332172145,1721003438889,-603.7,0.00013917,2]
[332172146,1721003438898,-500.0,0.00013917,2]
[332172147,1721003438908,-500.0,0.00013917,2]
[332172148,1721003438917,-500.0,0.00013917,2]
[332172149,1721003438926,-500.0,0.00013917,2]
[332172150,1721003438936,-500.0,0.00013917,2]
[332172151,1721003438945,-526.2160917,0.00013917,2]
[332172152,1721003438955,-500.0,0.00013917,2]
[332172153,1721003438964,-500.0,0.00013917,2]
[332172154,1721003438974,-500.0,0.00013917,2]
[332172155,1721003438984,-500.0,0.00013917,2]
[332172156,1721003438994,-2323.09,0.00013917,2]
[332172157,1721003439003,-500.0,0.00013917,2]
[332172158,1721003439013,-616.24,0.00013917,2]
[332172159,1721003439022,-884.68,0.00013917,2]
[332172160,1721003439031,-680.72,0.00013917,2]
[332172161,1721003439041,-500.0,0.00013917,2]
[332172162,1721003439054,-800.0,0.00013951,2]
[332172163,1721003439064,-190.93,0.00013952,2]
[332172164,1721003439073,-500.0,0.00013953,2]
[332172165,1721003439083,-500.0,0.00013953,2]
[332172166,1721003439092,-500.0,0.00013953,2]
[332172167,1721003439101,-500.0,0.00013953,2]
[332172168,1721003439111,-500.0,0.00013953,2]
[332172169,1721003439121,-500.0,0.00013954,2]
[332172170,1721003439130,-385.10220627,0.00013965,2]
[332172171,1721003439140,-500.0,0.00013972,2]
[332172172,1721003439149,-500.0,0.00013972,2]
[332172173,1721003439159,-150.0,0.00013972,2]
[332172174,1721003439168,-500.0,0.00013972,2]
[332172175,1721003439177,-2774.2,0.00013972,2]
[332172176,1721003439187,-500.0,0.00013972,2]
[332172177,1721003439196,-500.0,0.00013972,2]
[332172178,1721003439205,-500.0,0.00013972,2]
[332172179,1721003439215,-603.7,0.00013972,2]
[332172180,1721003439223,-500.0,0.00013972,2]
[332172181,1721003439233,-500.0,0.00013972,2]
[332172182,1721003439243,-500.0,0.00013972,2]
[332172183,1721003439252,-500.0,0.00013972,2]
[332172184,1721003439262,-500.0,0.00013972,2]
[332172185,1721003439271,-500.0,0.00013972,2]
[332172186,1721003439282,-500.0,0.00013972,2]
[332172187,1721003439291,-2323.09,0.00013972,2]
[332172188,1721003439303,-500.0,0.00013972,2]
[332172189,1721003439313,-616.24,0.00013972,2]
[332172190,1721003439323,-884.68,0.00013972,2]
[332172191,1721003439332,-680.72,0.00013972,2]
[332172192,1721003439341,-500.0,0.00013972,2]
[332172193,1721003439350,-1000.0,0.00013973,5]
[332172194,1721003439359,-500.0,0.00013989,2]
[332172195,1721003439368,-500.0,0.00013989,2]
[332172196,1721003439378,-500.0,0.00013989,2]
[332172197,1721003439387,-500.0,0.00013989,2]
[332172198,1721003439396,-562.82,0.00013989,2]
[332172199,1721003439406,-500.0,0.00013989,2]
[332172200,1721003439415,-500.0,0.00013989,2]
[332172201,1721003439426,-3937.2675736,0.00013998,2]
[332172202,1721003439436,-7124.44189013,0.00013998,2]
[332172203,1721003439455,-1189.17655856,0.00013998,2]
[332172205,1721003440067,-2371.47496843,0.00013998,2]
[332172206,1721003440079,-2317.16226982,0.00013998,2]
[332172207,1721003440090,-340.78144659,0.00013998,2]
[332172208,1721003440101,-561.97850452,0.00013998,2]
[332172209,1721003440339,-1676.78294335,0.00013998,2]
[332172210,1721003440352,-2120.6822772,0.00013998,2]
[332172211,1721003440362,-241.57623348,0.00013998,2]
[332172212,1721003440372,-5931.14804107,0.00013999,2]
[332172213,1721003440382,-210.10223507,0.00013999,2]
[332172214,1721003440392,-500.0,0.00013999,2]
[332172215,1721003440401,-500.0,0.00013999,2]
[332172216,1721003440411,-500.0,0.00013999,2]
[332172217,1721003440422,-500.0,0.00013999,2]
[332172218,1721003440434,-500.0,0.00013999,2]
[332172219,1721003440444,-500.0,0.00013999,2]
[332172220,1721003440453,-500.0,0.00013999,2]
[332172221,1721003440463,-642.24,0.00013999,2]
[332172222,1721003440472,-384920.98378162,0.00014,2]
[332172223,1721003440482,-1304571.79321716,0.00014,2]
[332172224,1721003440493,-175325.66195999,0.00014,2]
[332172225,1721003440505,-8992.54697232,0.00014,2]
[332172226,1721003440516,-312.3160075,0.00014,2]
[332172227,1721003440528,-776.11930093,0.00014,2]
[332172228,1721003440539,-12180.4,0.00014,2]
[332172229,1721003440550,-574.61696002,0.00014,2]
[332172230,1721003440569,-1596.88006637,0.00014,2]
[332172284,1721003443086,-156.0,0.00012273,2]
[332172285,1721003443095,-870.45642444,0.00013698,2]
[332172286,1721003443106,-1210.19357556,0.00013698,2]
[332172287,1721003443116,-2080.65,0.00013753,2]
[332172288,1721003443125,-2080.65,0.00013808,2]
[332172289,1721003443135,-2080.65,0.00013863,2]
[332172290,1721003443144,-334.58997074,0.000139,2]
[332172291,1721003443153,-2080.65,0.00013917,2]
[332172292,1721003443162,-2080.65,0.00013972,2]
[332172293,1721003443172,-210.15902252,0.00013999,2]
[332172294,1721003443181,-5931.14804107,0.00013999,2]
[332172295,1721003443191,-5432.42663503,0.00014,2]
[332172296,1721003443203,-18717.1864348,0.00014,2]
[332172297,1721003443218,-17920.90906937,0.00014,2]
[332172298,1721003443230,-22163.18622214,0.00014,2]
[332172299,1721003443317,-650.96828781,0.00014,2]
[332172300,1721003443328,-2631.6028162,0.00014,2]
[332172301,1721003443341,-830.11403148,0.00014,2]
[332172302,1721003443352,-20165.87469525,0.00014,2]
[332172303,1721003443371,-6317.46577834,0.00014,2]
[332172304,1721003443383,-8047.36758596,0.00014,2]
[332172306,1721003443395,-709.17,0.00014,2]
[332172308,1721003443407,-664.83272804,0.00014,2]
[332172309,1721003443423,-600.883692,0.00014,2]
[332172310,1721003443439,-14435.04513219,0.00014,2]
[332172311,1721003443451,-3292.164575,0.00014,2]
[332172322,1721003446223,-16344.51668327,0.00014,2]
[332172323,1721003446235,-376.58731798,0.00014,2]
[332172329,1721003446286,-407.02749737,0.00014,2]
[332172331,1721003446297,-2535.49260384,0.00014,2]
[332172333,1721003446401,-101688.68967969,0.00014,2]
[332172334,1721003446411,-160030.7726435,0.00014,2]
[332172335,1721003446422,-450.94606924,0.00014,2]
[332172336,1721003446444,-283.70416119,0.00014,2]
[332172337,1721003446467,-8036.765211,0.00014,2]
[332172338,1721003446481,-2313.36006971,0.00014,2]
[332172339,1721003446493,-3845.72914333,0.00014,2]
[332172342,1721003519460,151.0,0.00020549,120]
[332172349,1721003714237,2674.0,0.00025,60]
[332172351,1721003807226,151.0,0.00020529,120]
[332172352,1721003840661,1385.54,0.00018849,30]
[332172353,1721003877093,152.0,0.00019941,36]
[332172354,1721003877413,152.0,0.00019867,35]
[332172355,1721003877937,152.0,0.00019794,34]
[332172356,1721003878320,152.0,0.00019721,33]
[332172357,1721003878682,152.0,0.00019648,32]
[332172358,1721003878982,152.0,0.00019574,31]
[332172359,1721003879299,152.0,0.00019501,30]
[332172360,1721003879617,152.0,0.00019428,29]
[332172361,1721003880099,152.0,0.00019355,28]
[332172362,1721003880890,152.0,0.00019282,27]
[332172363,1721003881228,152.0,0.00019208,26]
[332172364,1721003881536,152.0,0.00019135,25]
[332172365,1721003881834,152.0,0.00019062,24]
[332172366,1721003882146,152.0,0.00018989,23]
[332172367,1721003882505,152.0,0.00018915,22]
[332172368,1721003882966,152.0,0.00018842,21]
[332172369,1721003883304,152.0,0.00018769,20]
[332172371,1721003951679,151.0,0.00027,120]
[332172372,1721003962776,1718.0,0.00027,120]
[332172373,1721003963728,151.0,0.00027,120]
[332172374,1721003979355,151.0,0.00027,120]
[332172375,1721003993840,276.030184,0.00027,120]
[332172376,1721004009375,151.0,0.00027,120]
[332172404,1721004174961,397.1377299,0.00027,120]
[332172407,1721004198993,151.0,0.00020038,120]
[332172426,1721004389880,1270.07,0.00018849,30]
[332172467,1721004634054,-557.67,0.00010909,2]
[332172468,1721004634065,-176.9375021,0.00011098,2]
[332172469,1721004634079,-543.68547682,0.00011098,2]
[332172470,1721004634090,-83.39452325,0.00011098,2]
[332172471,1721004634104,-213.42597452,0.00011098,2]
[332172472,1721004634115,-158.64569138,0.00011098,2]
[332172473,1721004634126,-32.65833397,0.00011098,2]
[332172474,1721004634139,-122.34166603,0.00011098,2]
[332172475,1721004634150,-227.3638533,0.00011098,2]
[332172476,1721004634160,-55.01448047,0.00012302,2]
[332172477,1721004634173,-99.98551953,0.00012302,2]
[332172478,1721004634184,-500.01448047,0.00012645,2]
[332172479,1721004634198,-499.6,0.00012645,2]
[332172480,1721004634210,-999.9006,0.00012645,2]
[332172481,1721004634221,-1000.3932,0.00012645,2]
[332172482,1721004634234,-1095.19142246,0.00012645,2]
[332172483,1721004634247,-483.71393226,0.00012645,2]
[332172484,1721004634259,-806.61636481,0.00012645,2]
[332172485,1721004634269,-182.0,0.0001267,2]
[332172486,1721004634279,-250.0,0.000127,2]
[332172487,1721004634289,-122.83639756,0.00012817,2]
[332172488,1721004634303,-127.16360244,0.00012817,2]
[332172489,1721004634313,-150.0,0.00012877,2]
[332172490,1721004634322,-765.00411756,0.00012878,2]
[332172491,1721004634335,-234.99588244,0.00012878,2]
[332172492,1721004634344,-150.99,0.00012878,2]
[332172493,1721004634354,-176.24,0.00012982,2]
[332172494,1721004634364,-1250.0,0.00013,2]
[332172495,1721004634374,-557.67,0.00013173,2]
[332172496,1721004634383,-150.0,0.00013177,2]
[332172497,1721004634393,-424.94,0.00013178,2]
[332172522,1721004634710,-165.09,0.00013178,2]
[332172525,1721004634729,-300.49,0.00013178,2]
[332172527,1721004634739,-150.0,0.00013178,2]
[332172529,1721004634748,-121.61584667,0.00013178,2]
[332172532,1721004634760,-178.38415333,0.00013178,2]
[332172533,1721004634770,-302.75,0.00013178,2]
[332172536,1721004634780,-319.27,0.00013178,2]
[332172537,1721004634795,-424.94,0.00013178,2]
[332172539,1721004634804,-710.34,0.00013178,2]
[332172541,1721004634814,-409.59,0.00013178,2]
[332172543,1721004634824,-165.09,0.00013178,2]
[332172545,1721004634834,-424.94,0.00013178,2]
[332172547,1721004634843,-150.0,0.00013178,2]
[332172549,1721004634853,-150.0,0.00013178,2]
[332172552,1721004634866,-165.09,0.00013178,2]
[332172554,1721004634876,-424.94,0.00013178,2]
[332172555,1721004634885,-165.09,0.00013178,2]
[332172557,1721004634895,-424.94,0.00013178,2]
[332172559,1721004634906,-150.0,0.00013178,2]
[332172561,1721004634916,-150.0,0.00013178,2]
[332172563,1721004634925,-165.09,0.00013178,2]
[332172565,1721004634935,-424.94,0.00013178,2]
[332172567,1721004634945,-424.94,0.00013178,2]
[332172569,1721004634955,-424.94,0.00013178,2]
[332172571,1721004634965,-424.94,0.00013178,2]
[332172573,1721004634975,-150.0,0.00013378,2]
[332172575,1721004634984,-150.0,0.00013378,2]
[332172577,1721004634994,-150.0,0.00013378,2]
[332172579,1721004635004,-150.0,0.00013378,2]
[332172581,1721004635014,-202.0,0.0001346,2]
[332172583,1721004635023,-533.27,0.00013478,2]
[332172585,1721004635033,-150.0,0.000135,2]
[332172587,1721004635043,-354.33,0.000135,2]
[332172589,1721004635052,-300.0,0.000135,2]
[332172591,1721004635063,-10640.03592053,0.0001359,2]
[332172593,1721004635075,-250.0,0.0001359,2]
[332172596,1721004635090,-255.97559429,0.0001359,2]
[332172598,1721004635101,-949.15901314,0.0001359,2]
[332172600,1721004635117,-615.25441392,0.0001359,2]
[332172602,1721004635128,-9137.35989155,0.0001359,2]
[332172605,1721004635140,-700.0,0.0001359,2]
[332172607,1721004635155,-544.02,0.0001359,2]
[332172609,1721004635166,-448.74875887,0.0001359,2]
[332172625,1721004638280,-1876.219899,0.00012916,2]
[332172626,1721004638290,-240.731216,0.00013516,2]
[332172627,1721004638300,-37619.7063077,0.0001359,2]
[332172628,1721004638310,-2825.98024325,0.0001359,2]
[332172629,1721004638339,-722.67910428,0.0001359,2]
[332172631,1721004638453,-996.9406,0.0001359,2]
[332172632,1721004638566,-699.68089927,0.0001359,2]
[332172633,1721004638577,-1453.9422444,0.0001359,2]
[332172634,1721004638589,-1433.36538452,0.0001359,2]
[332172635,1721004638600,-1417.8438135,0.0001359,2]
[332172636,1721004638611,-2114.8729136,0.0001359,2]
[332172637,1721004638621,-2445.96972555,0.0001359,2]
[332172785,1721004640344,-739.49087163,0.0001359,2]
[332172787,1721004640354,-23.98912838,0.00013698,2]
[332172789,1721004640365,-476.01087162,0.00013698,2]
[332172791,1721004640374,-78.65876893,0.00013698,2]
[332172794,1721004640385,-97.69719423,0.00013698,2]
[332172796,1721004640395,-500.0,0.00013698,2]
[332172798,1721004640404,-106.30280567,0.00013698,2]
[332172800,1721004640422,-393.69719433,0.00013698,2]
[332172802,1721004640431,-504.16853341,0.00013698,2]
[332172804,1721004640440,-500.0,0.00013698,2]
[332172806,1721004640449,-551.92542254,0.00013698,2]
[332172808,1721004640458,-281.60610375,0.00013698,2]
[332172810,1721004640467,-500.0,0.00013698,2]
[332172812,1721004640476,-131.38100414,0.00013699,2]
[332172815,1721004640487,-319.13899586,0.00013699,2]
[332172817,1721004640496,-250.0,0.00013699,2]
[332172819,1721004640505,-500.0,0.00013753,2]
[332172821,1721004640514,-5.93966586,0.00013753,2]
[332172823,1721004640525,-279.14347705,0.00013753,2]
[332172825,1721004640536,-214.91685709,0.00013753,2]
[332172827,1721004640545,-500.0,0.00013753,2]
[332172829,1721004640555,-500.0,0.00013753,2]
[332172831,1721004640565,-500.0,0.00013753,2]
[332172833,1721004640574,-500.0,0.00013808,2]
[332172835,1721004640583,-1.49286631,0.00013808,2]
[332172837,1721004640594,-298.84654406,0.00013808,2]
[332172839,1721004640603,-150.9434744,0.00013808,2]
[332172841,1721004640614,-262.79677064,0.00013808,2]
[332172843,1721004640625,-86.25975496,0.00013808,2]
[332172845,1721004640635,-222.86663559,0.00013808,2]
[332172848,1721004640645,-43.26329967,0.00013808,2]
[332172850,1721004640655,-500.0,0.00013808,2]
[332172852,1721004640664,-385.10220627,0.0001382,2]
[332172854,1721004640673,-202.0,0.0001384,2]
[332172856,1721004640682,-242.43380697,0.00013849,2]
[332172858,1721004640691,-1463.84215,0.0001386,2]
[332172860,1721004640700,-500.0,0.00013863,2]
[332172862,1721004640710,-500.0,0.00013863,2]
[332172864,1721004640719,-500.0,0.00013863,2]
[332172866,1721004640729,-192.11,0.0001389,3]
[332172868,1721004640738,-630.98675692,0.00013899,2]
[332172870,1721004640748,-155.0,0.00013899,2]
[332172872,1721004640757,-1000.0,0.000139,2]
[332172874,1721004640766,-209.2893539,0.000139,2]
[332172876,1721004640776,-147.52840103,0.00013917,2]
[332172878,1721004640798,-352.47159897,0.00013917,2]
[332172880,1721004640810,-500.0,0.00013917,2]
[332172882,1721004640820,-500.0,0.00013917,2]
[332172883,1721004640831,-500.0,0.00013972,2]
[332172885,1721004640840,-500.0,0.00013972,2]
[332172887,1721004640850,-500.0,0.00013972,2]
[332172889,1721004640859,-1000.0,0.00013973,5]
[332172891,1721004640869,-287.75,0.00013989,2]
[332172893,1721004640880,-500.0,0.00013989,2]
[332172895,1721004640889,-619.8,0.00013989,2]
[332172897,1721004640898,-500.0,0.00013989,2]
[332172899,1721004640907,-150.0,0.00013989,2]
[332172901,1721004640917,-500.0,0.00013989,2]
[332172903,1721004640926,-205.30156874,0.00013989,2]
[332172905,1721004640936,-500.0,0.00013989,2]
[332172907,1721004640945,-500.0,0.00013989,2]
[332172909,1721004640954,-500.0,0.00013989,2]
[332172911,1721004640964,-248.67705199,0.00013989,2]
[332173194,1721004643890,-294.14994472,0.00013178,2]